fUST/lending_fUST_20260522
["ID","MTS","AMOUNT","RATE_DAILY","PERIOD"]
[422799632,1779413441000,-500.0,8.285e-05,2]
[422799643,1779413441000,-500.0,8.286e-05,2]
[422799639,1779413441000,-500.71363845,8.285e-05,2]
[422799647,1779413441000,-361.72223597,8.286e-05,2]
[422799645,1779413441000,-500.0,8.286e-05,2]
[422799646,1779413441000,-500.0,8.286e-05,2]
[422799649,1779413441000,-500.0,8.286e-05,2]
[422799654,1779413441000,-500.0,8.286e-05,2]
[422799659,1779413441000,-500.0,8.289e-05,2]
[422799603,1779413441000,-421.97180478,8.285e-05,2]
[422799662,1779413441000,-500.0,8.289e-05,2]
[422799661,1779413441000,-500.0,8.289e-05,2]
[422799660,1779413441000,-500.0,8.289e-05,2]
[422799651,1779413441000,-500.0,8.286e-05,2]
[422799631,1779413441000,-500.0,8.285e-05,2]
[422799653,1779413441000,-581.05,8.286e-05,2]
[422799656,1779413441000,-500.0,8.288e-05,2]
[422799650,1779413441000,-562.0,8.286e-05,2]
[422799648,1779413441000,-500.0,8.286e-05,2]
[422799652,1779413441000,-500.0,8.286e-05,2]
[422799655,1779413441000,-500.0,8.288e-05,2]
[422799658,1779413441000,-500.0,8.289e-05,2]
[422799657,1779413441000,-500.0,8.288e-05,2]
[422799622,1779413441000,-500.0,8.285e-05,2]
[422799638,1779413441000,-500.41806484,8.285e-05,2]
[422799629,1779413441000,-500.0,8.285e-05,2]
[422799611,1779413441000,-500.0,8.285e-05,2]
[422799608,1779413441000,-633.19955961,8.285e-05,2]
[422799616,1779413441000,-500.0,8.285e-05,2]
[422799618,1779413441000,-500.0,8.285e-05,2]
[422799617,1779413441000,-500.0,8.285e-05,2]
[422799606,1779413441000,-500.0,8.285e-05,2]
[422799605,1779413441000,-500.0,8.285e-05,2]
[422799596,1779413441000,-500.0,8.285e-05,2]
[422799595,1779413441000,-500.0,8.285e-05,2]
[422799600,1779413441000,-500.0,8.285e-05,2]
[422799602,1779413441000,-500.0,8.285e-05,2]
[422799594,1779413441000,-344.24812949,8.285e-05,2]
[422799625,1779413441000,-500.0,8.285e-05,2]
[422799591,1779413441000,-500.0,8.285e-05,2]
[422799598,1779413441000,-500.0,8.285e-05,2]
[422799615,1779413441000,-500.0,8.285e-05,2]
[422799593,1779413441000,-500.0,8.285e-05,2]
[422799609,1779413441000,-500.0,8.285e-05,2]
[422799630,1779413441000,-500.0,8.285e-05,2]
[422799623,1779413441000,-500.0,8.285e-05,2]
[422799624,1779413441000,-500.0,8.285e-05,2]
[422799627,1779413441000,-500.0,8.285e-05,2]
[422799628,1779413441000,-519.57,8.285e-05,2]
[422799619,1779413441000,-508.52,8.285e-05,2]
[422799621,1779413441000,-500.0,8.285e-05,2]
[422799620,1779413441000,-500.0,8.285e-05,2]
[422799612,1779413441000,-500.0,8.285e-05,2]
[422799613,1779413441000,-500.0,8.285e-05,2]
[422799607,1779413441000,-500.0,8.285e-05,2]
[422799614,1779413441000,-511.79,8.285e-05,2]
[422799610,1779413441000,-162.90061512,8.285e-05,2]
[422799626,1779413441000,-500.0,8.285e-05,2]
[422799707,1779413442000,-500.0,8.558e-05,2]
[422799708,1779413442000,-500.0,8.558e-05,2]
[422799702,1779413442000,-500.0,8.558e-05,2]
[422799712,1779413442000,-500.0,8.558e-05,2]
[422799710,1779413442000,-500.2492201,8.558e-05,2]
[422799709,1779413442000,-500.0,8.558e-05,2]
[422799711,1779413442000,-574.43,8.558e-05,2]
[422799704,1779413442000,-500.0,8.558e-05,2]
[422799703,1779413442000,-500.0,8.558e-05,2]
[422799701,1779413442000,-500.0,8.558e-05,2]
[422799699,1779413442000,-500.0,8.558e-05,2]
[422799700,1779413442000,-500.0,8.558e-05,2]
[422799698,1779413442000,-500.0,8.558e-05,2]
[422799705,1779413442000,-500.0,8.558e-05,2]
[422799706,1779413442000,-500.0,8.558e-05,2]
[422799718,1779413442000,-500.0,8.558e-05,2]
[422799724,1779413442000,-500.0,8.558e-05,2]
[422799715,1779413442000,-500.0,8.558e-05,2]
[422799713,1779413442000,-575.19,8.558e-05,2]
[422799720,1779413442000,-500.0,8.558e-05,2]
[422799727,1779413442000,-575.84,8.558e-05,2]
[422799716,1779413442000,-500.0,8.558e-05,2]
[422799719,1779413442000,-500.0,8.558e-05,2]
[422799723,1779413442000,-500.0,8.558e-05,2]
[422799717,1779413442000,-500.0,8.558e-05,2]
[422799722,1779413442000,-424.25868882,8.558e-05,2]
[422799721,1779413442000,-618.98,8.558e-05,2]
[422799725,1779413442000,-500.0,8.558e-05,2]
[422799728,1779413442000,-500.0,8.558e-05,2]
[422799691,1779413442000,-500.0,8.558e-05,2]
[422799714,1779413442000,-500.0,8.558e-05,2]
[422799688,1779413442000,-394.30416616,8.557e-05,2]
[422799664,1779413442000,-500.0,8.289e-05,2]
[422799689,1779413442000,-500.0,8.557e-05,2]
[422799729,1779413442000,-526.96,8.558e-05,2]
[422799671,1779413442000,-499.999999,8.3e-05,2]
[422799670,1779413442000,-500.0,8.289e-05,2]
[422799668,1779413442000,-500.0,8.289e-05,2]
[422799665,1779413442000,-500.0,8.289e-05,2]
[422799669,1779413442000,-500.0,8.289e-05,2]
[422799666,1779413442000,-500.0,8.289e-05,2]
[422799663,1779413442000,-500.0,8.289e-05,2]
[422799667,1779413442000,-500.0,8.289e-05,2]
[422799672,1779413442000,-420.0,8.359e-05,2]
[422799674,1779413442000,-300.0,8.451e-05,2]
[422799676,1779413442000,-300.0,8.451e-05,2]
[422799673,1779413442000,-500.0,8.4e-05,2]
[422799675,1779413442000,-300.0,8.451e-05,2]
[422799677,1779413442000,-265.7406659,8.493e-05,2]
[422799682,1779413442000,-500.0,8.557e-05,2]
[422799678,1779413442000,-433.53,8.557e-05,2]
[422799695,1779413442000,-568.37,8.558e-05,2]
[422799697,1779413442000,-579.93,8.558e-05,2]
[422799696,1779413442000,-500.0,8.558e-05,2]
[422799694,1779413442000,-500.0,8.558e-05,2]
[422799692,1779413442000,-500.0,8.558e-05,2]
[422799687,1779413442000,-500.0,8.557e-05,2]
[422799690,1779413442000,-500.0,8.558e-05,2]
[422799693,1779413442000,-500.0,8.558e-05,2]
[422799685,1779413442000,-500.0,8.557e-05,2]
[422799684,1779413442000,-500.0,8.557e-05,2]
[422799680,1779413442000,-367.79,8.557e-05,2]
[422799683,1779413442000,-281.33,8.557e-05,2]
[422799679,1779413442000,-354.3,8.557e-05,2]
[422799681,1779413442000,-500.0,8.557e-05,2]
[422799686,1779413442000,-500.0,8.557e-05,2]
[422799726,1779413442000,-500.0,8.558e-05,2]
[422799753,1779413442000,-500.0,8.558e-05,2]
[422799737,1779413442000,-500.0,8.558e-05,2]
[422799770,1779413442000,-500.0,8.559e-05,2]
[422799780,1779413442000,-500.0,8.559e-05,2]
[422799781,1779413442000,-500.0,8.559e-05,2]
[422799769,1779413442000,-500.0,8.559e-05,2]
[422799771,1779413442000,-500.0,8.559e-05,2]
[422799772,1779413442000,-500.0,8.559e-05,2]
[422799773,1779413442000,-379.33006463,8.559e-05,2]
[422799775,1779413442000,-500.0,8.559e-05,2]
[422799779,1779413442000,-500.0,8.559e-05,2]
[422799778,1779413442000,-500.0,8.559e-05,2]
[422799774,1779413442000,-500.0,8.559e-05,2]
[422799776,1779413442000,-500.0,8.559e-05,2]
[422799777,1779413442000,-500.0,8.559e-05,2]
[422799783,1779413442000,-500.0,8.559e-05,2]
[422799787,1779413442000,-500.0,8.559e-05,2]
[422799785,1779413442000,-500.0,8.559e-05,2]
[422799786,1779413442000,-500.0,8.559e-05,2]
[422799731,1779413442000,-500.0,8.558e-05,2]
[422799798,1779413442000,-500.0,8.559e-05,2]
[422799799,1779413442000,-500.0,8.559e-05,2]
[422799790,1779413442000,-500.0,8.559e-05,2]
[422799796,1779413442000,-500.0,8.559e-05,2]
[422799794,1779413442000,-340.03817645,8.559e-05,2]
[422799782,1779413442000,-500.0,8.559e-05,2]
[422799792,1779413442000,-500.0,8.559e-05,2]
[422799789,1779413442000,-500.0,8.559e-05,2]
[422799795,1779413442000,-589.55252234,8.559e-05,2]
[422799788,1779413442000,-500.0,8.559e-05,2]
[422799791,1779413442000,-500.0,8.559e-05,2]
[422799797,1779413442000,-500.0,8.559e-05,2]
[422799784,1779413442000,-500.0,8.559e-05,2]
[422799793,1779413442000,-607.59,8.559e-05,2]
[422799759,1779413442000,-500.0,8.558e-05,2]
[422799762,1779413442000,-500.0,8.559e-05,2]
[422799764,1779413442000,-500.0,8.559e-05,2]
[422799736,1779413442000,-500.0,8.558e-05,2]
[422799763,1779413442000,-500.0,8.559e-05,2]
[422799730,1779413442000,-585.94,8.558e-05,2]
[422799732,1779413442000,-500.7339719,8.558e-05,2]
[422799734,1779413442000,-588.73,8.558e-05,2]
[422799738,1779413442000,-500.0,8.558e-05,2]
[422799735,1779413442000,-500.0,8.558e-05,2]
[422799740,1779413442000,-500.0,8.558e-05,2]
[422799750,1779413442000,-500.0,8.558e-05,2]
[422799751,1779413442000,-500.0,8.558e-05,2]
[422799739,1779413442000,-500.0,8.558e-05,2]
[422799752,1779413442000,-500.0,8.558e-05,2]
[422799754,1779413442000,-500.0,8.558e-05,2]
[422799747,1779413442000,-520.86104808,8.558e-05,2]
[422799744,1779413442000,-602.59,8.558e-05,2]
[422799733,1779413442000,-500.0,8.558e-05,2]
[422799745,1779413442000,-622.23316246,8.558e-05,2]
[422799760,1779413442000,-500.0,8.558e-05,2]
[422799757,1779413442000,-500.0,8.558e-05,2]
[422799758,1779413442000,-212.03329038,8.558e-05,2]
[422799742,1779413442000,-500.0,8.558e-05,2]
[422799755,1779413442000,-500.0,8.558e-05,2]
[422799768,1779413442000,-500.0,8.559e-05,2]
[422799761,1779413442000,-500.0,8.558e-05,2]
[422799766,1779413442000,-500.0,8.559e-05,2]
[422799756,1779413442000,-538.59,8.558e-05,2]
[422799749,1779413442000,-601.44,8.558e-05,2]
[422799746,1779413442000,-500.0,8.558e-05,2]
[422799748,1779413442000,-500.0,8.558e-05,2]
[422799767,1779413442000,-500.0,8.559e-05,2]
[422799765,1779413442000,-209.04,8.559e-05,2]
[422799866,1779413443000,-500.0,8.559e-05,2]
[422799875,1779413443000,-500.0,8.559e-05,2]
[422799863,1779413443000,-500.0,8.559e-05,2]
[422799865,1779413443000,-500.0,8.559e-05,2]
[422799869,1779413443000,-500.0,8.559e-05,2]
[422799873,1779413443000,-500.0,8.559e-05,2]
[422799861,1779413443000,-500.0,8.559e-05,2]
[422799877,1779413443000,-500.0,8.559e-05,2]
[422799859,1779413443000,-500.0,8.559e-05,2]
[422799867,1779413443000,-500.0,8.559e-05,2]
[422799857,1779413443000,-500.0,8.559e-05,2]
[422799871,1779413443000,-500.0,8.559e-05,2]
[422799893,1779413443000,-500.0,8.559e-05,2]
[422799900,1779413443000,-183.82,8.559e-05,2]
[422799904,1779413443000,-150.63,8.559e-05,2]
[422799879,1779413443000,-500.0,8.559e-05,2]
[422799898,1779413443000,-500.0,8.559e-05,2]
[422799892,1779413443000,-323.49,8.559e-05,2]
[422799890,1779413443000,-500.0,8.559e-05,2]
[422799902,1779413443000,-246.55,8.559e-05,2]
[422799888,1779413443000,-500.0,8.559e-05,2]
[422799886,1779413443000,-500.0,8.559e-05,2]
[422799884,1779413443000,-500.0,8.559e-05,2]
[422799881,1779413443000,-500.0,8.559e-05,2]
[422799911,1779413443000,-500.0,8.56e-05,2]
[422799855,1779413443000,-500.0,8.559e-05,2]
[422799907,1779413443000,-511.88,8.559e-05,2]
[422799896,1779413443000,-569.65,8.559e-05,2]
[422799853,1779413443000,-312.62245159,8.559e-05,2]
[422799821,1779413443000,-500.0,8.559e-05,2]
[422799851,1779413443000,-500.0,8.559e-05,2]
[422799801,1779413443000,-500.0,8.559e-05,2]
[422799800,1779413443000,-500.0,8.559e-05,2]
[422799811,1779413443000,-500.29319409,8.559e-05,2]
[422799813,1779413443000,-500.35985669,8.559e-05,2]
[422799802,1779413443000,-500.0,8.559e-05,2]
[422799815,1779413443000,-500.0,8.559e-05,2]
[422799808,1779413443000,-500.0,8.559e-05,2]
[422799806,1779413443000,-500.0,8.559e-05,2]
[422799816,1779413443000,-500.0,8.559e-05,2]
[422799804,1779413443000,-500.0,8.559e-05,2]
[422799817,1779413443000,-500.2483657,8.559e-05,2]
[422799827,1779413443000,-500.0,8.559e-05,2]
[422799825,1779413443000,-500.0,8.559e-05,2]
[422799829,1779413443000,-500.0,8.559e-05,2]
[422799820,1779413443000,-580.34,8.559e-05,2]
[422799819,1779413443000,-553.91,8.559e-05,2]
[422799906,1779413443000,-626.11,8.559e-05,2]
[422799818,1779413443000,-500.0,8.559e-05,2]
[422799822,1779413443000,-500.0,8.559e-05,2]
[422799823,1779413443000,-500.23430538,8.559e-05,2]
[422799831,1779413443000,-500.0,8.559e-05,2]
[422799842,1779413443000,-500.0,8.559e-05,2]
[422799834,1779413443000,-500.0,8.559e-05,2]
[422799848,1779413443000,-500.0,8.559e-05,2]
[422799837,1779413443000,-500.0,8.559e-05,2]
[422799844,1779413443000,-500.0,8.559e-05,2]
[422799835,1779413443000,-500.0,8.559e-05,2]
[422799840,1779413443000,-537.34,8.559e-05,2]
[422799846,1779413443000,-504.81,8.559e-05,2]
[422799850,1779413443000,-500.0,8.559e-05,2]
[422799909,1779413443000,-500.0,8.559e-05,2]
[422799956,1779413443000,-500.0,8.832e-05,2]
[422799931,1779413443000,-500.0,8.831e-05,2]
[422799959,1779413443000,-175.29,8.832e-05,2]
[422799978,1779413443000,-400.47,8.833e-05,2]
[422799983,1779413443000,-500.0,9.105e-05,2]
[422799925,1779413443000,-333.99800842,8.789e-05,3]
[422799979,1779413443000,-500.0,8.834e-05,2]
[422799987,1779413443000,-500.0,9.105e-05,2]
[422799976,1779413443000,-500.0,8.833e-05,2]
[422799981,1779413443000,-247.36540912,8.837e-05,2]
[422799988,1779413443000,-500.0,9.106e-05,2]
[422799984,1779413443000,-500.0,9.105e-05,2]
[422799986,1779413443000,-409.20735136,9.105e-05,2]
[422799980,1779413443000,-163.54,8.834e-05,2]
[422799982,1779413443000,-462.94,8.837e-05,2]
[422799965,1779413443000,-500.0,8.832e-05,2]
[422799975,1779413443000,-500.0,8.833e-05,2]
[422799990,1779413443000,-500.0,9.106e-05,2]
[422800000,1779413443000,-500.0,9.108e-05,2]
[422800001,1779413443000,-193.631594,9.198e-05,2]
[422799989,1779413443000,-500.0,9.106e-05,2]
[422799991,1779413443000,-500.0,9.106e-05,2]
[422799996,1779413443000,-500.0,9.107e-05,2]
[422799994,1779413443000,-160.78,9.106e-05,2]
[422799992,1779413443000,-500.0,9.106e-05,2]
[422799995,1779413443000,-500.0,9.106e-05,2]
[422799993,1779413443000,-500.0,9.106e-05,2]
[422799997,1779413443000,-500.0,9.107e-05,2]
[422799999,1779413443000,-500.0,9.107e-05,2]
[422799998,1779413443000,-354.91,9.107e-05,2]
[422799985,1779413443000,-500.0,9.105e-05,2]
[422799968,1779413443000,-500.0,8.832e-05,2]
[422799977,1779413443000,-500.0,8.833e-05,2]
[422799963,1779413443000,-151.14,8.832e-05,2]
[422799921,1779413443000,-193.631594,8.632e-05,2]
[422799915,1779413443000,-215.11,8.56e-05,2]
[422799913,1779413443000,-500.0,8.56e-05,2]
[422799929,1779413443000,-500.0,8.831e-05,2]
[422799919,1779413443000,-500.0,8.563e-05,2]
[422799927,1779413443000,-500.0,8.8e-05,2]
[422799917,1779413443000,-500.0,8.563e-05,2]
[422799923,1779413443000,-218.29,8.752e-05,2]
[422799967,1779413443000,-164.46,8.832e-05,2]
[422799954,1779413443000,-279.7,8.832e-05,2]
[422799936,1779413443000,-500.0,8.831e-05,2]
[422799938,1779413443000,-500.0,8.831e-05,2]
[422799933,1779413443000,-384.56,8.831e-05,2]
[422799948,1779413443000,-649.6,8.832e-05,2]
[422799952,1779413443000,-500.0,8.832e-05,2]
[422799946,1779413443000,-585.44,8.832e-05,2]
[422799942,1779413443000,-500.0,8.832e-05,2]
[422799972,1779413443000,-458.2,8.833e-05,2]
[422799962,1779413443000,-563.97,8.832e-05,2]
[422799969,1779413443000,-500.0,8.832e-05,2]
[422799973,1779413443000,-189.79,8.833e-05,2]
[422799970,1779413443000,-500.0,8.832e-05,2]
[422799961,1779413443000,-500.0,8.832e-05,2]
[422799958,1779413443000,-446.91,8.832e-05,2]
[422799974,1779413443000,-500.0,8.833e-05,2]
[422799944,1779413443000,-500.0,8.832e-05,2]
[422799971,1779413443000,-165.9,8.833e-05,2]
[422799935,1779413443000,-500.0,8.831e-05,2]
[422799940,1779413443000,-189.62570808,8.831e-05,2]
[422799950,1779413443000,-500.0,8.832e-05,2]
[422800010,1779413444000,-9384.44407561,9.2e-05,2]
[422800009,1779413444000,-8839.75889643,9.2e-05,2]
[422800007,1779413444000,-948.9576423,9.2e-05,2]
[422800006,1779413444000,-3433.82952641,9.2e-05,2]
[422800005,1779413444000,-1000.87672137,9.2e-05,2]
[422800004,1779413444000,-716.17832852,9.2e-05,2]
[422800003,1779413444000,-199400.1600916,9.2e-05,2]
[422800002,1779413444000,-4995.38890126,9.2e-05,2]
[422800008,1779413444000,-4119.01448785,9.2e-05,2]
[422800030,1779413446000,-459.0765286,9.2e-05,2]
[422800035,1779413447000,-16257.32324277,9.2e-05,2]
[422800039,1779413777000,-7137.4,0.00015,30]
[422800038,1779413777000,-152.0,0.00013568,30]
[422800040,1779413821000,-7289.4,0.00015,30]
[422800041,1779413863000,-14579.0,0.00015,30]
[422800042,1779413892000,-1457.9,0.00015,30]
[422800072,1779414632000,-3823.16515283,7.59e-05,2]
[422800092,1779414632000,-300.0,7.804e-05,2]
[422800102,1779414632000,-131.55576143,7.805e-05,2]
[422800090,1779414632000,-306.06352663,7.766e-05,2]
[422800088,1779414632000,-193.631594,7.666e-05,2]
[422800098,1779414632000,-500.0,7.805e-05,2]
[422800100,1779414632000,-500.0,7.805e-05,2]
[422800096,1779414632000,-500.0,7.805e-05,2]
[422800086,1779414632000,-1176.83484717,7.59e-05,2]
[422800094,1779414632000,-500.0,7.805e-05,2]
[422800234,1779414642000,-500.0,7.805e-05,2]
[422800240,1779414642000,-500.0,7.805e-05,2]
[422800238,1779414642000,-500.0,7.805e-05,2]
[422800237,1779414642000,-386.42659353,7.805e-05,2]
[422800235,1779414642000,-500.0,7.805e-05,2]
[422800233,1779414642000,-500.0,7.805e-05,2]
[422800230,1779414642000,-515.00080864,7.805e-05,2]
[422800231,1779414642000,-502.27668422,7.805e-05,2]
[422800236,1779414642000,-113.57340647,7.805e-05,2]
[422800228,1779414642000,-500.0,7.805e-05,2]
[422800227,1779414642000,-407.92767202,7.805e-05,2]
[422800239,1779414642000,-500.0,7.805e-05,2]
[422800232,1779414642000,-500.0,7.805e-05,2]
[422800241,1779414642000,-500.0,7.805e-05,2]
[422800229,1779414642000,-500.0,7.805e-05,2]
[422800243,1779414642000,-500.0,7.805e-05,2]
[422800244,1779414642000,-500.0,7.805e-05,2]
[422800256,1779414642000,-515974.0034757,7.806e-05,2]
[422800253,1779414642000,-500.0,7.805e-05,2]
[422800255,1779414642000,-26417.85135584,7.806e-05,2]
[422800254,1779414642000,-500.0,7.805e-05,2]
[422800257,1779414642000,-199400.1600916,7.806e-05,2]
[422800258,1779414642000,-81747.74664303,7.806e-05,2]
[422800248,1779414642000,-500.0,7.805e-05,2]
[422800249,1779414642000,-587.9803576,7.805e-05,2]
[422800251,1779414642000,-500.0,7.805e-05,2]
[422800250,1779414642000,-500.0,7.805e-05,2]
[422800245,1779414642000,-500.0,7.805e-05,2]
[422800252,1779414642000,-500.0,7.805e-05,2]
[422800242,1779414642000,-500.0,7.805e-05,2]
[422800281,1779414644000,-9745.12271566,7.806e-05,2]
[422800278,1779414644000,-1182.39083897,7.806e-05,2]
[422800305,1779414935000,10007.73,0.000178,120]
[422800349,1779415832000,-153.51944144,6.516e-05,2]
[422800341,1779415832000,-382.49053454,6.516e-05,2]
[422800353,1779415832000,-300.0,6.782e-05,2]
[422800343,1779415832000,-4463.99002402,6.516e-05,2]
[422800355,1779415832000,-4698.91636996,6.783e-05,2]
[422800357,1779415832000,-1741.58460302,6.783e-05,2]
[422800361,1779415832000,-580.28886402,6.783e-05,2]
[422800363,1779415832000,-94.41067304,6.918e-05,2]
[422800351,1779415832000,-309.78133756,6.649e-05,2]
[422800504,1779415838000,-5000.0,6.451e-05,2]
[422800515,1779415839000,-300.0,6.918e-05,2]
[422800518,1779415839000,-300.0,6.918e-05,2]
[422800522,1779415839000,-151.57568925,7.7e-05,2]
[422800523,1779415839000,-154.09277551,7.7e-05,2]
[422800525,1779415839000,-155.0472616,7.7e-05,2]
[422800531,1779415839000,-2191.7445175,7.7e-05,2]
[422800524,1779415839000,-154.64272999,7.7e-05,2]
[422800526,1779415839000,-845.48997456,7.7e-05,2]
[422800535,1779415839000,-258.85770031,7.804e-05,2]
[422800533,1779415839000,-460.0,7.8e-05,2]
[422800520,1779415839000,-600.0,7.055e-05,2]
[422800534,1779415839000,-261.074,7.8e-05,2]
[422800519,1779415839000,-300.0,6.918e-05,2]
[422800506,1779415839000,-300.0,6.918e-05,2]
[422800516,1779415839000,-300.0,6.918e-05,2]
[422800521,1779415839000,-420.0,7.46e-05,2]
[422800514,1779415839000,-300.0,6.918e-05,2]
[422800512,1779415839000,-300.0,6.918e-05,2]
[422800511,1779415839000,-300.0,6.918e-05,2]
[422800513,1779415839000,-300.0,6.918e-05,2]
[422800510,1779415839000,-300.0,6.918e-05,2]
[422800508,1779415839000,-300.0,6.918e-05,2]
[422800505,1779415839000,-205.58932696,6.918e-05,2]
[422800507,1779415839000,-300.0,6.918e-05,2]
[422800509,1779415839000,-300.0,6.918e-05,2]
[422800530,1779415839000,-2036.55677314,7.7e-05,2]
[422800517,1779415839000,-300.0,6.918e-05,2]
[422800529,1779415839000,-1801.82102902,7.7e-05,2]
[422800560,1779415839000,-500.0,7.805e-05,2]
[422800527,1779415839000,-1812.92699223,7.7e-05,2]
[422800558,1779415839000,-500.0,7.805e-05,2]
[422800556,1779415839000,-236.85013457,7.805e-05,2]
[422800557,1779415839000,-500.0,7.805e-05,2]
[422800554,1779415839000,-500.0,7.805e-05,2]
[422800559,1779415839000,-500.0,7.805e-05,2]
[422800555,1779415839000,-500.0,7.805e-05,2]
[422800550,1779415839000,-500.0,7.805e-05,2]
[422800553,1779415839000,-500.0,7.805e-05,2]
[422800551,1779415839000,-500.0,7.805e-05,2]
[422800561,1779415839000,-450.0,7.805e-05,2]
[422800562,1779415839000,-179416.94967922,7.806e-05,2]
[422800532,1779415839000,-720.0,7.761e-05,2]
[422800546,1779415839000,-500.0,7.805e-05,2]
[422800552,1779415839000,-500.0,7.805e-05,2]
[422800547,1779415839000,-500.0,7.805e-05,2]
[422800528,1779415839000,-200.5147258,7.7e-05,2]
[422800536,1779415839000,-572.55580277,7.804e-05,2]
[422800538,1779415839000,-213.08806824,7.804e-05,2]
[422800545,1779415839000,-500.0,7.805e-05,2]
[422800539,1779415839000,-500.0,7.804e-05,2]
[422800548,1779415839000,-500.0,7.805e-05,2]
[422800537,1779415839000,-500.0,7.804e-05,2]
[422800541,1779415839000,-280.66238683,7.804e-05,2]
[422800544,1779415839000,-500.0,7.805e-05,2]
[422800543,1779415839000,-500.0,7.805e-05,2]
[422800542,1779415839000,-500.0,7.805e-05,2]
[422800549,1779415839000,-500.0,7.805e-05,2]
[422800540,1779415839000,-500.0,7.804e-05,2]
[422800574,1779415841000,-786.88397015,7.806e-05,2]
[422800595,1779415844000,-5029.77788828,7.806e-05,2]
[422800592,1779415844000,-5502.35841072,7.806e-05,2]
[422800594,1779415844000,-5284.15326649,7.806e-05,2]
[422800593,1779415844000,-26054.62992482,7.806e-05,2]
[422800599,1779415844000,-76996.05719903,7.806e-05,2]
[422800596,1779415844000,-1591.27977177,7.806e-05,2]
[422800598,1779415844000,-7137.71634032,7.806e-05,2]
[422800597,1779415844000,-8545.19668423,7.806e-05,2]
[422800600,1779415844000,-3928.60947472,7.806e-05,2]
[422800601,1779415844000,-6264.6768635,7.806e-05,2]
[422800609,1779415847000,-56638.88657607,7.806e-05,2]
[422800607,1779415847000,-1572.82820681,7.806e-05,2]
[422800608,1779415847000,-9566.40173126,7.806e-05,2]
[422800627,1779415992000,-1000.0,7.728e-05,2]
[422800628,1779415994000,-1000.0,7.728e-05,2]
[422800629,1779416001000,-1000.0,7.728e-05,2]
[422800630,1779416002000,-1000.0,7.728e-05,2]
[422800631,1779416003000,-1000.0,7.728e-05,2]
[422800634,1779416008000,-200.0,7.805e-05,2]
[422800633,1779416008000,-500.0,7.805e-05,2]
[422800632,1779416008000,-300.0,7.803e-05,2]
[422800635,1779416010000,-300.0,7.805e-05,2]
[422800636,1779416010000,-500.0,7.805e-05,2]
[422800637,1779416010000,-200.0,7.805e-05,2]
[422800640,1779416011000,-200.0,7.805e-05,2]
[422800639,1779416011000,-500.0,7.805e-05,2]
[422800638,1779416011000,-300.0,7.805e-05,2]
[422800641,1779416013000,-300.0,7.805e-05,2]
[422800643,1779416013000,-200.0,7.805e-05,2]
[422800642,1779416013000,-500.0,7.805e-05,2]
[422800645,1779416014000,-500.0,7.805e-05,2]
[422800646,1779416014000,-200.0,7.805e-05,2]
[422800644,1779416014000,-300.0,7.805e-05,2]
[422800647,1779416018000,-300.0,7.805e-05,2]
[422800648,1779416018000,-500.0,7.805e-05,2]
[422800649,1779416018000,-200.0,7.805e-05,2]
[422800651,1779416020000,-213.08806824,7.805e-05,2]
[422800652,1779416020000,-414.35612899,7.805e-05,2]
[422800650,1779416020000,-372.55580277,7.805e-05,2]
[422800655,1779416021000,-500.0,7.805e-05,2]
[422800656,1779416021000,-155.49842868,7.805e-05,2]
[422800653,1779416021000,-85.64387101,7.805e-05,2]
[422800654,1779416021000,-258.85770031,7.805e-05,2]
[422800659,1779416022000,-374.83604185,7.805e-05,2]
[422800658,1779416022000,-280.66238683,7.805e-05,2]
[422800657,1779416022000,-344.50157132,7.805e-05,2]
[422800660,1779416023000,-125.16395815,7.805e-05,2]
[422800662,1779416023000,-437.98590728,7.805e-05,2]
[422800661,1779416023000,-436.85013457,7.805e-05,2]
[422800663,1779416024000,-1000.0,7.727e-05,2]
[422800664,1779416025000,-1000.0,7.727e-05,2]
[422800665,1779416026000,-1000.0,7.727e-05,2]
[422800666,1779416032000,-1000.0,7.727e-05,2]